Cogmind - Beta 11.1 @@@ ROGUE MODE // 2022.06.19 @ 18:21:35 Player: Delirus Result: Destroyed by P-70 Sage with Tesla Rifle Performance ------------- Evolutions (6) 3000 Regions Visited (15) 3000 Robots Destroyed (187) 935 Value Destroyed (6666) 6666 Prototype IDs (55) 1100 Alien Tech Used (0) 0 Bonus (1526) 1526 TOTAL SCORE: 16227 Bonus ------- High Alert Combat Kills 577 Follower Combat Kills 272 Entered DSFs 500 Aligned with FarCom 300 Friendly Fire -123 Cogmind --------- Core Integrity 0/1150 Matter 300/300 Energy 99/100 System Corruption 8% Temperature Cool (0) Movement Core (50) Location -4/Upper Caves Parts ------- > --- POWER (2) -------- (None) > --- PROPULSION (4) --- Centrium Wheel > --- UTILITY (9) ------ Advanced Cooling System > --- WEAPON (4) ------- (None) > --- INVENTORY (5) ---- Antimatter Reactor Heavy Treads Small Matter Pod (50) Peak State ------------ > --- POWER ------------ Micro Fission Core Micro Fission Core > --- PROPULSION ------- Medium Treads Medium Treads Armored Huge Wheel > --- UTILITY ---------- Advanced Cooling System Huge Storage Unit Structural Scanner Advanced Visual Processing Unit Improved Targeting Computer Improved Target Analyzer Medium Reactive Plating > --- WEAPON ----------- Enhanced Autogun Enhanced Autogun Heavy Machine Gun Power Sword > --- INVENTORY -------- Medium Treads Medium Treads Armored Huge Wheel Advanced Cooling System High-capacity Matter Pod Improved Trap Scanner Enhanced Optical Array Experimental Sensor Array Advanced Targeting Computer Matter Filter Weapon Cycler Improved Utility Shielding Advanced Shield Generator Force Field Long-range Tractor Beam Field Recycling Unit Minigun Enhanced Autogun Enhanced Coil Gun Advanced Assault Cannon Advanced EMP Blaster [Rating: 77] Favorites ----------- Power Deuterium Engine Engine Deuterium Engine Power Core Light Nuclear Core Reactor Antimatter Reactor Propulsion Light Treads Treads Light Treads Leg Aluminum Leg Wheel Compact Wheel Utility High-capacity Storage Unit Device Long-range Tractor Beam Storage High-capacity Storage Unit Processor Advanced Visual Processing Unit Hackware System Shield Protection Light Armor Plating Weapon Enhanced Autogun Energy Gun High-powered Shock Rifle Energy Cannon HERF Cannon Ballistic Gun Enhanced Autogun Ballistic Cannon Mass Driver Launcher Advanced EMP Blaster Special Weapon Mining Laser Slashing Weapon Power Sword Special Melee Weapon Datajack Build | -11 -10 -10 -9 -9 -9 -8 -8 -8 -7 -7 -6 -6 -5 -4 -4 ------- Run | Scr Mat Min Mat Min Exi Min Mat Sto Fac DSF Fac Ext Fac Fac Upp Slots Evolved 12 | . . . 2 . . . 2 . 2 . 2 . 2 2 . Power 1 | . . . . . . . . . . . . . 1 . . Propulsion 2 | . . . . . . . 1 . 1 . . . . . . Utility 7 | . . . . . . . 1 . 1 . 2 . 1 2 . Weapon 2 | . . . 2 . . . . . . . . . . . . Parts Attached 225 | 3 7 1 18 7 6 2 25 15 3 10 4 27 56 33 8 Power 21 | . 3 . 1 . . . 3 . . . . 1 5 7 1 Engine 5 | . . . 1 . . . 2 . . . . . 1 1 . Core 15 | . 3 . . . . . 1 . . . . 1 4 6 . Reactor 1 | . . . . . . . . . . . . . . . 1 Propulsion 35 | 2 1 . 1 . . . 3 3 1 8 . . 9 4 3 Treads 27 | 1 1 . 1 . . . 3 3 1 8 . . 7 1 1 Leg . | . . . . . . . . . . . . . . . . Wheel 8 | 1 . . . . . . . . . . . . 2 3 2 Hover . | . . . . . . . . . . . . . . . . Flight . | . . . . . . . . . . . . . . . . Utility 95 | 1 2 1 6 7 . 2 10 3 2 2 3 17 21 15 3 Device 50 | 1 . 1 2 4 . 1 8 1 1 . 2 7 11 8 3 Storage 6 | . 1 . . 1 . . . . . . 1 1 1 1 . Processor 9 | . 1 . . . . . 1 . 1 1 . . 4 1 . Hackware 2 | . . . . . . . . . . . . . . 2 . Protection 28 | . . . 4 2 . 1 1 2 . 1 . 9 5 3 . Artifact . | . . . . . . . . . . . . . . . . Weapon 74 | . 1 . 10 . 6 . 9 9 . . 1 9 21 7 1 Energy Gun 1 | . . . . . . . . . . . . . . . 1 Energy Cannon 1 | . . . . . . . . . . . . . . 1 . Ballistic Gun 41 | . 1 . 8 . 4 . 7 4 . . 1 5 11 . . Ballistic Cannon 6 | . . . . . . . . . . . . . 2 4 . Launcher 7 | . . . 1 . . . 1 . . . . 1 4 . . Special Weapon 4 | . . . 1 . . . 1 2 . . . . . . . Impact Weapon . | . . . . . . . . . . . . . . . . Slashing Weapon 12 | . . . . . . . . 3 . . . 3 4 2 . Piercing Weapon . | . . . . . . . . . . . . . . . . Special Melee Weapon 2 | . . . . . 2 . . . . . . . . . . Unidentified Prototypes 4 | . . . . 1 . . . . . . . 1 . 2 . Parts Lost 49 | . 2 . 2 . . . 4 . . . . 3 25 11 2 Power 12 | . 1 . 1 . . . 1 . . . . 1 4 4 . Propulsion 8 | . . . . . . . . . . . . . 7 1 . Utility 15 | . 1 . 1 . . . 2 . . . . 1 6 3 1 Weapon 14 | . . . . . . . 1 . . . . 1 8 3 1 Highest Loss Streak 9 | . 2 . 1 . . . 2 . . . . 2 9 5 2 To Critical Strikes 2 | . . . . . . . . . . . . . 2 . . Average Slot Usage (%) 90 | . 95 100 99 100 100 100 98 99 91 99 92 99 88 44 25 Engine 5 | . 6 . 3 11 11 11 7 9 7 7 6 3 2 . . Core 3 | . 7 14 6 . . . 1 . . . . 2 6 5 . Treads 16 | . 14 14 11 11 11 11 24 26 23 30 26 26 13 1 3 Wheel 5 | . 14 14 11 11 11 11 2 . . . . . 3 3 4 Device 8 | . 5 13 4 6 . 9 9 2 6 . 8 12 14 7 9 Storage 8 | . 14 14 11 11 11 11 9 9 7 7 6 6 4 3 . Processor 6 | . 4 . . . . . 5 9 7 15 13 10 15 4 . Protection 4 | . . . 6 4 11 1 2 6 7 6 6 9 1 2 . Ballistic Gun 27 | . 28 28 43 44 37 44 35 33 30 30 24 24 19 . . Naked Turns 126 | . . . . . . . . . . . . . 51 38 37 Heaviest Build 135 | 14 50 50 54 54 54 54 62 64 65 81 83 108 135 107 30 Greatest Support 104 | 20 20 16 16 16 16 16 63 63 83 96 96 96 104 53 70 Greatest Overweight (x) 4 | . 3 3 3 3 3 3 3 1 1 . . 1 4 3 . Average Overweight (x) 1 | . 2 3 2 3 3 3 . . . . . . 2 1 . Largest Inventory Capacity 25 | 8 20 20 20 20 20 20 20 20 20 20 20 20 25 20 5 Average Capacity 19 | 8 16 20 20 20 20 20 20 20 20 20 20 20 22 16 5 Most Carried 22 | 8 16 17 20 20 20 20 20 20 20 20 19 20 22 12 5 Average Carried 17 | 6 9 16 19 20 19 20 19 19 19 19 17 19 18 6 4 Final Capacity 20 | 8 20 20 20 20 20 20 20 20 20 20 20 20 5 5 5 Final Carried 20 | 7 16 17 20 20 20 20 20 20 18 19 17 20 5 5 4 Class Distribution -------------------- 41% | Scavenger-Skirmisher 17% | Mutant 9% | Scavenger-Tank 8% | Skirmisher 7% | Scavenger-Mutant 5% | Tank Dominant Class ---------------- Mutant | -10/Materials Mutant | -10/Mines Scavenger-Skirmisher | -9/Materials Scavenger-Skirmisher | -9/Mines Scavenger-Mutant | -9/Exiles Scavenger-Skirmisher | -8/Mines Scavenger-Skirmisher | -8/Materials Scavenger-Skirmisher | -8/Storage Scavenger-Skirmisher | -7/Factory Skirmisher | -7/DSF Skirmisher | -6/Factory Scavenger-Skirmisher | -6/Extension Scavenger-Skirmisher | -5/Factory Mutant | -4/Factory Derelict-Mutant | -4/Upper Caves Resources | -11 -10 -10 -9 -9 -9 -8 -8 -8 -7 -7 -6 -6 -5 -4 -4 ----------- Run | Scr Mat Min Mat Min Exi Min Mat Sto Fac DSF Fac Ext Fac Fac Upp Matter Collected 7717 | 251 287 33 724 231 72 . 807 676 . 140 . 1425 2145 809 117 Remotely 3601 | . . . . . . . 609 30 . . . 1368 1435 159 . Salvage Created 8263 | 106 274 . 611 44 . . 766 867 . 305 . 1602 2946 742 . Parts 475 | 9 17 . 60 6 . . 51 50 . 19 . 71 131 61 . Haulers Intercepted 9 | . 1 . . . . . 2 4 . . . . 2 . . Recyclers Shooed 9 | . . . . . . . 1 1 . . . 2 4 1 . Parts Field Recycled 6 | . . . . . . . . . . . . 6 . . . Retrieved Matter 37 | . . . . . . . . . . . . 37 . . . Parts Self-Destructed 12 | . . . . . . . . . . . . . . . 12 Prevented . | . . . . . . . . . . . . . . . . Kills | -11 -10 -10 -9 -9 -9 -8 -8 -8 -7 -7 -6 -6 -5 -4 -4 ------- Run | Scr Mat Min Mat Min Exi Min Mat Sto Fac DSF Fac Ext Fac Fac Upp Combat Hostiles Destroyed 133 | . 7 . 23 3 . . 16 11 . 5 . 15 37 16 . Melee 2 | . . . . . . . . . . . . . 1 1 . Guns 99 | . 6 . 17 3 . . 15 11 . 5 . 13 29 . . Cannons 17 | . . . . . . . . . . . . . 2 15 . AOE 14 | . 1 . 6 . . . 1 . . . . 2 4 . . Classes Destroyed 20 | 2 4 . 3 . . . 2 1 . 2 . 3 3 . . Worker 8 | . 2 . . . . . . . . . . . 3 3 . Builder 12 | . . . 1 . . . 2 1 . . . 6 2 . . Tunneler 4 | 1 . . . . . . . . . . . 2 . 1 . Hauler 9 | . 1 . . . . . 2 4 . . . . 2 . . Recycler 6 | 1 . . . . . . . . . . . 3 1 1 . Mechanic 1 | . . . . . . . . . . . . . 1 . . Operator 4 | . . . . . . . 1 1 . . . 1 . 1 . Watcher 9 | . . . 2 . . . 3 . . . . . 3 1 . Swarmer 36 | . 3 . 11 3 . . 7 . . . . . 4 8 . Saboteur 1 | . . . . . . . . . . . . . 1 . . Grunt 47 | . 4 . 6 . . . 7 10 . 2 . 7 11 . . Brawler 4 | . . . . . . . . 1 . . . . 3 . . Duelist 2 | . . . . . . . . . . . . 1 1 . . Protector 1 | . . . . . . . . . . . . . 1 . . Sentry 12 | . . . 6 . . . 1 . . 1 . 4 . . . Specialist 2 | . . . . . . . . . . 1 . . 1 . . Hunter 7 | . . . . . . . 1 . . . . . 6 . . Programmer 18 | . . . . . . . . . . . . 1 9 8 . Heavy 1 | . . . . . . . . . . 1 . . . . . Behemoth 2 | . . . . . . . . . . . . 2 . . . Thug 1 | . . . . . . . . 1 . . . . . . . Best Kill Streak 8 | 2 4 . 8 3 . . 5 5 . 2 . 8 8 6 . Combat Bots Only 8 | . 4 . 8 3 . . 4 5 . 2 . 4 7 6 . Max Kills in Single Turn 4 | 1 3 . 4 2 . . 2 2 . 2 . 4 2 1 . Gunslinging 1 | . . . . 1 . . 1 1 . 1 . . 1 . . Exploded 4 | . 1 . 4 . . . 1 . . . . 2 2 . . Melee 1 | . . . . . . . . . . . . . 1 1 . Uniques/NPCs Destroyed . | . . . . . . . . . . . . . . . . Combat | -11 -10 -10 -9 -9 -9 -8 -8 -8 -7 -7 -6 -6 -5 -4 -4 -------- Run | Scr Mat Min Mat Min Exi Min Mat Sto Fac DSF Fac Ext Fac Fac Upp Damage Taken 10988 | . 240 . 660 24 . . 714 143 . 196 . 1384 4109 2876 642 Core 2058 | . 54 . 83 . . . 26 . . . . 145 589 825 336 Absorbed by Shields . | . . . . . . . . . . . . . . . . Redirected to Shielding 21 | . . . . . . . . . . . . 21 . . . Regen/Repaired (Parts) 783 | . . . . . . . . 204 . . 102 . 477 . . Core Remaining (%) 82 | 100 . 78 . . . 79 . 95 . 100 . 82 41 . . Volleys Fired 426 | 7 21 . 46 2 . . 45 38 . 12 . 65 122 58 10 Largest 4 | 2 2 . 4 4 . . 4 4 . 4 . 4 4 2 1 Hottest 145 | 60 40 . 100 86 . . 100 100 . 100 . 111 128 145 60 Shots Fired 1343 | 14 42 . 163 8 . . 177 139 . 48 . 243 412 87 10 Gun 1201 | 14 42 . 157 8 . . 173 135 . 48 . 240 374 . 10 Cannon 110 | . . . . . . . . . . . . . 23 87 . Launcher 26 | . . . 5 . . . 3 . . . . 3 15 . . Special 6 | . . . 1 . . . 1 4 . . . . . . . Kinetic 1268 | 7 42 . 157 8 . . 173 135 . 48 . 240 397 61 . Thermal 13 | 7 . . 1 . . . 1 4 . . . . . . . Explosive 8 | . . . 5 . . . 3 . . . . . . . . Electromagnetic 54 | . . . . . . . . . . . . 3 15 26 10 Robot Hit Streak 20 | 5 10 . 13 2 . . 10 16 . 10 . 20 19 12 4 Robot Miss Streak 6 | 1 2 . 6 5 . . 3 5 . 2 . 4 3 5 1 Penetration Max 1 | . . . . . . . . . . . . . 1 1 . Secondary Targets 14 | . . . 2 2 . . 2 1 . 1 . 1 5 . . Max Gunslinging Chain 1 | . . . 1 1 . . 1 1 . 1 . 1 1 . . Shots Hit Robots 867 | 10 29 . 80 3 5 . 112 78 . 33 . 158 299 54 6 Core Hits 405 | 3 16 . 46 3 . . 52 33 . 13 . 69 139 28 3 Critical Kills 5 | . . . 1 . . . 2 . . . . . 2 . . Critical Parts Destroyed 18 | . . . . . . . 3 . . . . . 15 . . Critical Strikes 33 | . . . 1 . . . 5 . . . . 1 20 5 1 Destroy 26 | . . . 1 . . . 5 . . . . 1 19 . . Blast 6 | . . . . . . . . . . . . . 1 5 . Corrupt 1 | . . . . . . . . . . . . . . . 1 Melee Attacks 74 | . . . . . 5 . . 46 . . . 10 8 5 . Impact . | . . . . . . . . . . . . . . . . Slashing 69 | . . . . . . . . 46 . . . 10 8 5 . Piercing . | . . . . . . . . . . . . . . . . Sneak Attacks 9 | . . . . . 5 . . . . . . 3 . 1 . Combat Hostiles . | . . . . . . . . . . . . . . . . Follow-up Attacks . | . . . . . . . . . . . . . . . . Damage Inflicted 20512 | 114 672 . 1687 43 . . 1793 1386 . 575 . 3871 7801 2507 63 Guns 13294 | 114 380 . 972 43 . . 1475 1386 . 575 . 2822 5500 . 27 Cannons 2260 | . . . . . . . . . . . . . 376 1884 . Explosions 4156 | . 292 . 715 . . . 318 . . . . 647 1829 355 . Melee 701 | . . . . . . . . . . . . 395 39 267 . Ramming 101 | . . . . . . . . . . . . 7 57 1 36 Kinetic 15067 | 70 380 . 972 43 . . 1475 1386 . 575 . 2822 5876 1468 . Thermal 1037 | 44 . . . . . . . . . . . 336 302 355 . Explosive 1325 | . 292 . 715 . . . 318 . . . . . . . . Electromagnetic 2281 | . . . . . . . . . . . . 311 1527 416 27 Impact . | . . . . . . . . . . . . . . . . Slashing 701 | . . . . . . . . . . . . 395 39 267 . Piercing . | . . . . . . . . . . . . . . . . Highest Corruption 14 | . . . . . . . . . . . . . 14 7 10 Average Corruption 5 | . . . . . . . . . . . . . 6 2 7 Corruption Purged 5 | . . . . . . . . . . . . . . . 5 Corruption Blocked . | . . . . . . . . . . . . . . . . Effects 69 | . . . . . . . . . . . . . 43 16 10 Message Errors 13 | . . . . . . . . . . . . . 12 1 . Matter Fused 14 | . . . . . . . . . . . . . 7 4 3 Heat Flow Errors 11 | . . . . . . . . . . . . . 6 3 2 Energy Discharges 6 | . . . . . . . . . . . . . 4 2 . Data Loss (minor) 9 | . . . . . . . . . . . . . 4 2 3 Data Loss (major) 4 | . . . . . . . . . . . . . . 2 2 Misfires 2 | . . . . . . . . . . . . . 1 1 . Alerts 2 | . . . . . . . . . . . . . 2 . . Weapon Failures 8 | . . . . . . . . . . . . . 7 1 . Overload Shots . | . . . . . . . . . . . . . . . . Overflow Damage 479 | . 81 . 12 . . . . . . . . 123 155 108 . Projectiles 60 | . . . . . . . . . . . . . 34 26 . Explosions 254 | . 81 . 12 . . . . . . . . 12 121 28 . Melee 165 | . . . . . . . . . . . . 111 . 54 . Knockbacks 26 | . . . . . . . . . . . . . 6 20 . Impact . | . . . . . . . . . . . . . . . . Kinetic 22 | . . . . . . . . . . . . . 5 17 . Secondary 4 | . . . . . . . . . . . . . 1 3 . Self-Inflicted Damage 428 | . 57 . . . . . . . . . . . 356 . 15 Shots 12 | . 1 . . . . . . . . . . . 11 . . Rammed 22 | . . . . . . . . 1 . . . . 7 1 13 Targets Rammed 23 | . . . . . . . . 1 . . . 1 7 1 13 Kicked . | . . . . . . . . . . . . . . . . Crushed 1 | . . . . . . . . . . . . 1 . . . Highest Temperature 303 | . 6 . 171 72 . . 292 303 . 42 . 296 243 230 131 Average Temperature 61 | . 2 . 54 39 . . 74 81 . 17 . 51 51 63 65 Received Heat Transfer 1476 | . 60 . 222 . . . 252 90 . 21 . 309 513 . 9 Effects 4 | . . . . . . . . . . . . 4 . . . Energy Bleed 1 | . . . . . . . . . . . . 1 . . . Interference 3 | . . . . . . . . . . . . 3 . . . Siege Activations . | . . . . . . . . . . . . . . . . Robots Corrupted 1 | . . . . . . . . . . . . . 1 . . Combat Hostiles 1 | . . . . . . . . . . . . . 1 . . Parts Fried 21 | . . . . . . . . . . . . 2 15 4 . Impact Corruptions . | . . . . . . . . . . . . . . . . Robots Melted . | . . . . . . . . . . . . . . . . Combat Hostiles . | . . . . . . . . . . . . . . . . Parts Melted 1 | . . . . . . . . . . . . . 1 . . Heat Transferred 900 | 100 . . . . . . . . . . . 400 150 250 . Parts Sabotaged 3 | . . . . . . . . . . . . . 3 . . Parts Stolen . | . . . . . . . . . . . . . . . . Parts Stripped . | . . . . . . . . . . . . . . . . Power Chain Reactions 4 | . . . . . . . . . . . . 2 1 1 . Missiles Intercepted . | . . . . . . . . . . . . . . . . Alert | -11 -10 -10 -9 -9 -9 -8 -8 -8 -7 -7 -6 -6 -5 -4 -4 ------- Run | Scr Mat Min Mat Min Exi Min Mat Sto Fac DSF Fac Ext Fac Fac Upp Peak Influence 1008 | 10 310 72 409 159 . 6 303 299 65 155 85 265 1008 667 . Initial 493 | . 6 72 . 159 . . . 14 65 45 81 41 106 493 . Average 173 | 5 163 31 176 100 . 1 105 151 65 113 84 57 340 475 . Maximum Alert Level 3 | . 1 . 2 . . . 1 1 . . . 1 3 2 . Low Security (%) 69 | 100 79 100 61 100 . 100 78 70 100 100 100 91 40 . . Level 1 16 | . 20 . 30 . . . 21 29 . . . 8 26 24 . Level 2 11 | . . . 8 . . . . . . . . . 17 75 . Level 3 2 | . . . . . . . . . . . . . 16 . . Level 4 . | . . . . . . . . . . . . . . . . Level 5 . | . . . . . . . . . . . . . . . . High Security . | . . . . . . . . . . . . . . . . Max Security . | . . . . . . . . . . . . . . . . Squads Dispatched 22 | . 2 . . . . . . 2 . 1 . 1 11 5 . Investigation 1 | . 1 . . . . . . . . . . . . . . Extermination 8 | . . . . . . . . . . . . . 4 4 . Reinforcement 10 | . 1 . . . . . . 2 . 1 . 1 4 1 . Assault 3 | . . . . . . . . . . . . . 3 . . Garrison . | . . . . . . . . . . . . . . . . Intercept . | . . . . . . . . . . . . . . . . Searches Triggered . | . . . . . . . . . . . . . . . . Construction Impeded 6 | . . . . . . . . 1 . . . 1 3 1 . Haulers Reinforced 1 | . . . . . . . . . . . . . 1 . . Active Scanning Responses . | . . . . . . . . . . . . . . . . Cargo Convoy Interrupts 1 | . . . . . . . . . . . . . 1 . . Stealth | -11 -10 -10 -9 -9 -9 -8 -8 -8 -7 -7 -6 -6 -5 -4 -4 --------- Run | Scr Mat Min Mat Min Exi Min Mat Sto Fac DSF Fac Ext Fac Fac Upp Distress Signals 19 | . 2 . 2 . . . 3 2 . . . 4 5 1 . Communications Jammed . | . . . . . . . . . . . . . . . . Distress Signals . | . . . . . . . . . . . . . . . . Times Spotted 253 | . 14 . 32 3 . . 29 22 . 5 . 30 76 30 12 Peak Tracking Total 11 | . 4 . 8 3 . . 7 5 . 2 . 5 10 7 11 Tactical Retreats 17 | . . . 1 . . . 1 . . . . 2 7 2 4 Traps | -11 -10 -10 -9 -9 -9 -8 -8 -8 -7 -7 -6 -6 -5 -4 -4 ------- Run | Scr Mat Min Mat Min Exi Min Mat Sto Fac DSF Fac Ext Fac Fac Upp Traps Triggered 6 | . 2 . 1 . . . . 1 . . . . 1 1 . Indirectly . | . . . . . . . . . . . . . . . . Trap Hack Attempts . | . . . . . . . . . . . . . . . . Triggered . | . . . . . . . . . . . . . . . . Disarmed . | . . . . . . . . . . . . . . . . Reprogrammed . | . . . . . . . . . . . . . . . . Reused . | . . . . . . . . . . . . . . . . Traps Extracted . | . . . . . . . . . . . . . . . . Installed . | . . . . . . . . . . . . . . . . Triggered . | . . . . . . . . . . . . . . . . Machines | -11 -10 -10 -9 -9 -9 -8 -8 -8 -7 -7 -6 -6 -5 -4 -4 ---------- Run | Scr Mat Min Mat Min Exi Min Mat Sto Fac DSF Fac Ext Fac Fac Upp Machines Disabled 33 | . 2 . 1 . . . 1 3 . . . 3 17 6 . Max in Single Turn 6 | . 2 . 1 . . . 1 1 . . . 1 6 1 . Machines Sabotaged . | . . . . . . . . . . . . . . . . Garrisons Compromised . | . . . . . . . . . . . . . . . . Overloaded Fab Kills . | . . . . . . . . . . . . . . . . Hacking | -11 -10 -10 -9 -9 -9 -8 -8 -8 -7 -7 -6 -6 -5 -4 -4 --------- Run | Scr Mat Min Mat Min Exi Min Mat Sto Fac DSF Fac Ext Fac Fac Upp Machines Accessed 41 | . 4 . 5 . 2 1 5 6 1 . 2 6 5 4 . Terminals 29 | . 4 . 3 . . 1 4 5 1 . 1 4 2 4 . Fabricators . | . . . . . . . . . . . . . . . . Repair Stations 3 | . . . . . . . . 1 . . 1 . 1 . . Recycling Units 5 | . . . 2 . . . . . . . . 2 1 . . Scanalyzers 2 | . . . . . . . 1 . . . . . 1 . . Garrison Access . | . . . . . . . . . . . . . . . . Total Hacks 119 | . 14 . 15 . 4 3 20 17 3 . 5 15 13 10 . Successful 65 | . 7 . 10 . 4 1 10 10 1 . 2 7 9 4 . Failed 52 | . 7 . 5 . . 1 9 7 2 . 3 8 4 6 . Catastrophic 8 | . . . . . . . 3 . . . 1 2 1 1 . Database Lockouts 2 | . . . . . . 1 1 . . . . . . . . Manual 70 | . 14 . 13 . 1 3 14 5 . . 3 6 2 9 . Terminals 86 | . 14 . 9 . . 3 19 13 3 . 3 9 3 10 . Fabricators . | . . . . . . . . . . . . . . . . Repair Stations 13 | . . . . . . . . 4 . . 2 . 7 . . Recycling Units 13 | . . . 6 . . . . . . . . 6 1 . . Scanalyzers 3 | . . . . . . . 1 . . . . . 2 . . Garrison Access . | . . . . . . . . . . . . . . . . Terminal Hacks 25 | . 4 . 2 . 4 1 4 4 1 . . 4 . 1 . Record 3 | . . . . . 3 . . . . . . . . . . Robot Analysis 1 | . 1 . . . . . . . . . . . . . . Prototype ID Bank 8 | . 2 . 1 . . 1 2 2 . . . . . . . Open Door 3 | . . . . . . . . 1 . . . 2 . . . Open DSF 1 | . . . . . . . . . 1 . . . . . . Branch Access Points 1 | . . . 1 . . . . . . . . . . . . Terminal Index 1 | . . . . . . . . . . . . 1 . . . Alert Level 2 | . . . . . . . 1 . . . . . . 1 . Unreport Threat 1 | . . . . . . . 1 . . . . . . . . Locate Traps 1 | . . . . . . . . 1 . . . . . . . Zone Layout 2 | . 1 . . . . . . . . . . 1 . . . EX-Prototype ID Bank 1 | . . . . . 1 . . . . . . . . . . Fabricator Hacks . | . . . . . . . . . . . . . . . . Repair Station Hacks 12 | . . . . . . . . 4 . . 2 . 6 . . Scan Component 6 | . . . . . . . . 2 . . 1 . 3 . . Repair 6 | . . . . . . . . 2 . . 1 . 3 . . Recycling Unit Hacks 3 | . . . . . . . . . . . . 2 1 . . Report Inventory 2 | . . . . . . . . . . . . 1 1 . . Retrieve Components 1 | . . . . . . . . . . . . 1 . . . Scanalyzer 2 | . . . . . . . 1 . . . . . 1 . . Insert Component 2 | . . . . . . . 1 . . . . . 1 . . Garrison Access Hacks . | . . . . . . . . . . . . . . . . Unauthorized Hacks 23 | . 3 . 8 . . . 5 2 . . . 1 1 3 . Terminals 19 | . 3 . 4 . . . 5 2 . . . 1 1 3 . Track 3 | . 1 . 1 . . . . . . . . . . 1 . Assimilate 1 | . . . . . . . . . . . . . . 1 . Botnet 12 | . 2 . 1 . . . 4 2 . . . 1 1 1 . Operators 3 | . . . 2 . . . 1 . . . . . . . . Fabricators . | . . . . . . . . . . . . . . . . Repair Stations . | . . . . . . . . . . . . . . . . Recycling Units 4 | . . . 4 . . . . . . . . . . . . Reject 2 | . . . 2 . . . . . . . . . . . . Mask 2 | . . . 2 . . . . . . . . . . . . Scanalyzers . | . . . . . . . . . . . . . . . . Garrison Access . | . . . . . . . . . . . . . . . . Data Cores Recovered 1 | . . . . . . . 1 . . . . . . . . Used . | . . . . . . . . . . . . . . . . Hacking Detections 34 | . 4 . 5 . . 1 4 5 1 . 2 4 4 4 . Full Trace Events 1 | . 1 . . . . . . . . . . . . . . Feedback Events . | . . . . . . . . . . . . . . . . Feedback Blocked . | . . . . . . . . . . . . . . . . Robot Schematics Acquired . | . . . . . . . . . . . . . . . . Robots Built . | . . . . . . . . . . . . . . . . Authchips . | . . . . . . . . . . . . . . . . Time . | . . . . . . . . . . . . . . . . Total Robot Build Rating . | . . . . . . . . . . . . . . . . Part Schematics Acquired . | . . . . . . . . . . . . . . . . Parts Built . | . . . . . . . . . . . . . . . . Authchips . | . . . . . . . . . . . . . . . . Time . | . . . . . . . . . . . . . . . . Total Part Build Rating . | . . . . . . . . . . . . . . . . Parts Repaired 6 | . . . . . . . . 2 . . 1 . 3 . . Time 244 | . . . . . . . . 58 . . 60 . 126 . . Parts Recycled . | . . . . . . . . . . . . . . . . Recycled Matter . | . . . . . . . . . . . . . . . . Retrieved Matter . | . . . . . . . . . . . . . . . . Retrieved Components 2 | . . . . . . . . . . . . 2 . . . Parts Scanalyzed . | . . . . . . . . . . . . . . . . Part Schematics Acquired . | . . . . . . . . . . . . . . . . Parts Damaged . | . . . . . . . . . . . . . . . . Bothacking | -11 -10 -10 -9 -9 -9 -8 -8 -8 -7 -7 -6 -6 -5 -4 -4 ------------ Run | Scr Mat Min Mat Min Exi Min Mat Sto Fac DSF Fac Ext Fac Fac Upp Used RIF Installer . | . . . . . . . . . . . . . . . . Robots Hacked 4 | . . . . . 4 . . . . . . . . . . Non-combat 3 | . . . . . 3 . . . . . . . . . . Combat 1 | . . . . . 1 . . . . . . . . . . Robot Hacks Applied 4 | . . . . . 4 . . . . . . . . . . parse_system 4 | . . . . . 4 . . . . . . . . . . Relay Couplers Released . | . . . . . . . . . . . . . . . . Fabnet Peak Effective % . | . . . . . . . . . . . . . . . . Robots Rewired . | . . . . . . . . . . . . . . . . Allies Hacked . | . . . . . . . . . . . . . . . . Hacks Repelled . | . . . . . . . . . . . . . . . . Allies | -11 -10 -10 -9 -9 -9 -8 -8 -8 -7 -7 -6 -6 -5 -4 -4 -------- Run | Scr Mat Min Mat Min Exi Min Mat Sto Fac DSF Fac Ext Fac Fac Upp Total Allies 6 | . . . . . . . . 3 . . . 2 . 1 . Largest Group 3 | . . . . . . . . 3 . . . 2 . 1 . Highest-Rated Group 93 | . . . . . . . . 93 . . . 62 . 10 . Highest-Rated Ally 31 | . . . . . . . . 31 . . . 31 . 10 . Total Orders 1 | . . . . . . . . . . . . . . 1 . STAY 1 | . . . . . . . . . . . . . . 1 . Ally Attacks 51 | . . . . . . . . 49 . . . 2 . . . Total Damage 735 | . . . . . . . . 713 . . . 22 . . . Kills 10 | . . . . . . . . 10 . . . . . . . Allies Corrupted . | . . . . . . . . . . . . . . . . Allies Melted . | . . . . . . . . . . . . . . . . Intel | -11 -10 -10 -9 -9 -9 -8 -8 -8 -7 -7 -6 -6 -5 -4 -4 ------- Run | Scr Mat Min Mat Min Exi Min Mat Sto Fac DSF Fac Ext Fac Fac Upp Robot Analysis Total 1 | . 1 . . . . . . . . . . . . . . Derelict Logs Recovered 2 | . . 1 . 1 . . . . . . . . . . . Drone Launches . | . . . . . . . . . . . . . . . . Drone Recoveries . | . . . . . . . . . . . . . . . . Exploration | -11 -10 -10 -9 -9 -9 -8 -8 -8 -7 -7 -6 -6 -5 -4 -4 ------------- Run | Scr Mat Min Mat Min Exi Min Mat Sto Fac DSF Fac Ext Fac Fac Upp Turns Passed 15211 | 52 629 914 1010 814 1098 754 1296 1652 105 207 209 2446 2240 1362 423 Spaces Moved 8454 | 22 386 623 540 470 744 516 679 619 43 99 88 1139 1109 1042 335 Core 686 | . . . . . . . . . . . . . 101 439 146 Treads 2924 | 1 10 . . . . . 501 619 43 99 88 1139 235 . 189 Legs 17 | 17 . . . . . . . . . . . . . . . Wheels 4827 | 4 376 623 540 470 744 516 178 . . . . . 773 603 . Hover . | . . . . . . . . . . . . . . . . Flight . | . . . . . . . . . . . . . . . . Fastest Speed 50 | 100 100 145 130 145 145 145 145 160 160 160 165 165 50 50 50 Average Speed 148 | 118 135 145 144 145 145 145 156 204 238 163 165 181 139 101 112 Slowest Speed 320 | 160 320 145 145 145 145 145 160 240 240 165 165 245 165 200 160 Overloaded Moves . | . . . . . . . . . . . . . . . . Propulsion Burnouts . | . . . . . . . . . . . . . . . . Robots Hopped . | . . . . . . . . . . . . . . . . Cave-ins Triggered . | . . . . . . . . . . . . . . . . Exploration Rate (%) 49 | 3 50 88 53 89 78 89 41 53 1 78 3 67 25 23 43 Regions Visited 15 Branch Regions 7 Pre-discovered Areas 2 | . . 1 . . 1 . . . . . . . . . . Known Exits Taken 3 | . . . 1 . . . 1 . 1 . . . . . . Unknown Exits Taken 11 | 1 1 1 . 1 1 1 . 1 . . 1 1 1 1 . Scrap Searched 4 | . . 1 . 1 . . . . . . . . . . 2 Spaces Dug 20 | . . . 1 . . . 1 4 . . . 1 12 1 . Terrain Destroyed 219 | . 38 . 7 . . . 20 4 . . . 5 87 58 . Melee 11 | . . . . . . . . 3 . . . 1 7 . . Projectile 52 | . . . 1 . . . 1 1 . . . . 22 27 . AOE 156 | . 38 . 6 . . . 19 . . . . 4 58 31 . Terrain Rammed . | . . . . . . . . . . . . . . . . Walls Destroyed . | . . . . . . . . . . . . . . . . Machines Disabled . | . . . . . . . . . . . . . . . . Actions | -11 -10 -10 -9 -9 -9 -8 -8 -8 -7 -7 -6 -6 -5 -4 -4 --------- Run | Scr Mat Min Mat Min Exi Min Mat Sto Fac DSF Fac Ext Fac Fac Upp Total 10379 | 33 451 633 684 595 759 521 841 889 45 140 152 1413 1608 1243 372 Wait 968 | . 21 8 40 117 . 4 63 145 . . 60 155 278 77 . Move 8439 | 21 385 622 539 469 743 515 678 618 42 98 87 1138 1108 1041 335 Hop . | . . . . . . . . . . . . . . . . Pick Up 122 | 2 13 2 22 . 2 . 15 12 . 6 . 12 21 15 . Fast Attach 48 | . 4 . 1 . 1 . 4 3 . 1 1 . 6 20 7 Attach 53 | 1 1 . 3 . . . 4 . 2 . 3 4 21 13 1 Detach 13 | . . . . . . . . . . . 1 . 2 8 2 Swap 124 | 2 2 1 14 7 5 2 17 12 1 9 . 23 29 . . Drop 88 | . 4 . 19 . 3 . 15 14 . 13 . 5 6 5 4 Fire 426 | 7 21 . 46 2 . . 45 38 . 12 . 65 122 58 10 Melee 74 | . . . . . 5 . . 46 . . . 10 8 5 . Ram 20 | . . . . . . . . . . . . . 6 1 13 Kick . | . . . . . . . . . . . . . . . . Crush 3 | . . . . . . . . 1 . . . 1 1 . . Escape Stasis . | . . . . . . . . . . . . . . . . Rewire 1 | . . . . . . . . . . 1 . . . . . Trap . | . . . . . . . . . . . . . . . . Miscellaneous . | . . . . . . . . . . . . . . . . Route ------- -11/Scrapyard -10/Materials (discovered 2 exits: *Mat / [*Min]) -10/Mines -9/Materials (discovered 3 exits: *Mat x2 / *Min) -9/Mines (discovered 3 exits: *Mat x2 / *Exi) -9/Exiles -8/Mines (discovered 2 exits: *Mat x2) -8/Materials (discovered 3 exits: *Fac / *Sto x2) -8/Storage -7/Factory -7/DSF -6/Factory -6/Extension (discovered 3 exits: *Fac x2 / [*Cet]) -5/Factory -4/Factory -4/Upper Caves History --------- Turn | Location | Event 1 | -11/Scrapyard | Discovered new exit (range 1) 53 | -11/Scrapyard | Entered Materials 205 | -10/Materials | Discovered new exit (range 3) 316 | -10/Materials | Build established: Mutant 615 | -10/Materials | Discovered new exit (range 16) 682 | -10/Materials | Entered Mines 707 | -10/Mines | Found a damaged Exp. Sensor Array with a note attached 709 | -10/Mines | Met a Derelict bent on vengeance 710 | -10/Mines | Found Prototype Device 911 | -10/Mines | Received a Rocket Launcher from a helpful Derelict 1272 | -10/Mines | Learned location of Storage (-8) 1428 | -10/Mines | Discovered new exit (range 12) 1436 | -10/Mines | Found a hidden stash of uninstalled traps 1596 | -10/Mines | Entered Materials 1596 | -9/Materials | Evolved 2 slots: Weapon x2 1998 | -9/Materials | Discovered new exit (range 9) 2069 | -9/Materials | Build established: Scavenger-Skirmisher 2072 | -9/Materials | Identified exit to Mines 2114 | -9/Materials | Discovered new exit (range 16) 2250 | -9/Materials | Destroyed 8 combat bots 2606 | -9/Materials | Entered Mines 2606 | -9/Mines | Identified Exp. Sensor Array 2664 | -9/Mines | Assembled infested the area 2680 | -9/Mines | Learned 2 Materials zone layouts 3086 | -9/Mines | Discovered new exit (range 6) 3182 | -9/Mines | Discovered new exit (range 5) 3414 | -9/Mines | Discovered new exit (range 5) 3420 | -9/Mines | Entered Exiles 3424 | -9/Exiles | Build established: Scavenger-Tank 3455 | -9/Exiles | Met 8R-AWN 3489 | -9/Exiles | Met EX-HEX 3537 | -9/Exiles | Met EX-BIN 3555 | -9/Exiles | Aligned with FarCom system 3557 | -9/Exiles | Given EX-Vault access code 3595 | -9/Exiles | Opened EX-Vault 3610 | -9/Exiles | Found Gui. Plasma Cannon 3638 | -9/Exiles | Warned to stay clear of 0b10 Research branches 3679 | -9/Exiles | Met EX-DEC 3734 | -9/Exiles | Learned location of Zion (-7) 3775 | -9/Exiles | Build established: Scavenger-Mutant 4160 | -9/Exiles | Visited The Gauntlet 4498 | -9/Exiles | Discovered new exit (range 14) 4518 | -9/Exiles | Left Exiles lab with Gui. Plasma Cannon 4518 | -9/Exiles | Entered Mines 4575 | -8/Mines | Discovered new exit (range 9) 4710 | -8/Mines | Discovered new exit (range 9) 4714 | -8/Mines | Central database locked down 4819 | -8/Mines | Build established: Scavenger-Skirmisher 5272 | -8/Mines | Entered Materials 5272 | -8/Materials | Evolved 2 slots: Propulsion x1, Utility x1 5273 | -8/Materials | Identified exit to Storage 5284 | -8/Materials | Central database locked down 5392 | -8/Materials | Discovered exit to Storage (range 4) 6262 | -8/Materials | Discovered new exit (range 14) 6568 | -8/Materials | Entered Storage 6778 | -8/Storage | Allied Derelicts emerged from ambush trap array 6822 | -8/Storage | Repaired Imp. Treads 6849 | -8/Storage | Repaired Lgt. Treads 7631 | -8/Storage | Discovered new exit (range 17) 8220 | -8/Storage | Entered Factory 8220 | -7/Factory | Evolved 2 slots: Propulsion x1, Utility x1 8320 | -7/Factory | Identified exit to DSF 8325 | -7/Factory | Entered DSF 8366 | -7/DSF | Additional patrols routed to DSF 8451 | -7/DSF | Discovered new exit (range 15) 8532 | -7/DSF | Entered Factory 8532 | -6/Factory | Evolved 2 slots: Utility x2 8606 | -6/Factory | Repaired Enh. Autogun 8634 | -6/Factory | Build established: Skirmisher 8723 | -6/Factory | Discovered new exit (range 12) 8741 | -6/Factory | Entered Extension 9187 | -6/Extension | Rescued a captive Derelict 9188 | -6/Extension | Rescued a captive Derelict 9264 | -6/Extension | Spotted B-75 Beast 9407 | -6/Extension | Build established: Scavenger-Skirmisher 10184 | -6/Extension | Destroyed B-75 Beast 10462 | -6/Extension | Build established: Tank 10857 | -6/Extension | Spotted B-75 Beast 10878 | -6/Extension | Destroyed B-75 Beast 10941 | -6/Extension | Disrupted transfer network 10943 | -6/Extension | Discovered new exit (range 3) 11068 | -6/Extension | Build established: Scavenger-Tank 11141 | -6/Extension | Discovered new exit (range 20) 11143 | -6/Extension | Discovered new exit (range 19) 11187 | -6/Extension | Entered Factory 11187 | -5/Factory | Evolved 2 slots: Power x1, Utility x1 11389 | -5/Factory | Lost 3 parts (2n1u) 11547 | -5/Factory | Repaired Arm. Treads 11592 | -5/Factory | Repaired Med. Treads 11638 | -5/Factory | Repaired Dynamic Insulation System 12142 | -5/Factory | Cargo convoy interrupted 12196 | -5/Factory | Lost 4 parts (1p1n2u) 12199 | -5/Factory | Destroyed 7 combat bots 12555 | -5/Factory | Build established: Scavenger-Skirmisher 12687 | -5/Factory | First assault squad dispatched 13086 | -5/Factory | System corruption reached 10% 13128 | -5/Factory | Lost 4 parts (1p1u2w) 13337 | -5/Factory | Lost 9 parts (1p4n1u3w) 13376 | -5/Factory | Released all parts (10) 13422 | -5/Factory | Discovered new exit (range 8) 13424 | -5/Factory | Core integrity fell below 50% 13427 | -5/Factory | Entered another Factory area 13427 | -4/Factory | Evolved 2 slots: Utility x2 13659 | -4/Factory | Build established: Mutant 14045 | -4/Factory | Lost 5 parts (1n2u2w) 14762 | -4/Factory | Build established: Hacker-Mutant 14764 | -4/Factory | Released all parts (13) 14773 | -4/Factory | Core integrity fell below 50% 14781 | -4/Factory | Discovered new exit (range 16) 14789 | -4/Factory | Entered Upper Caves 14806 | -4/Upper Caves | Attacked by a faux Warlord 14822 | -4/Upper Caves | System corruption reached 10% 14824 | -4/Upper Caves | Core integrity fell below 20% 15147 | -4/Upper Caves | Build established: Derelict-Mutant 15212 | -4/Upper Caves | Destroyed by P-70 Sage with Tesla Rifle Last Messages --------------- 14998_ GD-OVQ(k) breaks down the debris. 14999_ System corrupted: Matter fused (-7). 15002_ Acquired 5 matter. 15007_ Acquired 1 matter. 15012_ Imp. System Restoration Module purges 1% system corruption (6%). 15053_ Imp. System Restoration Module purges 1% system corruption (5%). 15053_ Imp. System Restoration Module expended. 15058_ Acquired 28 matter. 15076_ System corrupted: Heat flow error (+193). 15100_ System corrupted: Substantial component data lost. 15144_ System corrupted: Component data lost. 15149_ GD-OVQ(k) breaks down the debris. 15185_ Imp. Shock Absorption System destroyed. 15191_ P-70 Sage misfires. 15194_ Hpw. Shock Rifle destroyed. 15196_ Dropped Imp. Hover Unit. 15197_ Dropped Imp. Medium Armor Plating. 15198_ GD-OVQ(k) breaks down the debris. 15198_ Dropped Adv. Cooling System. 15208_ Acquired 35 matter. Map ----- +----------------------------------------------------+ | ?# # # ## # #?????# #???????# ### ## | | ?## ##### ##????# #???????# #?###### | | ??## # #??## #????# #???##### #??????## | | ???## ##??## #????# #???# #???????# | | ????#### ##?## ##????# #???# #??###### | | ???????## # ### ##?### #???# #####?## # | | ????????# ## # #?# ##??# #?????# # | | ????????# # #?## #### #?????# ## | | ???????# ## #??## #?????# ##? | | ???????# # !=!##??## #?????## #?? | | ???????### ## # # ##??## #??????# #?? | | ?????????####?### # #???### ##??????## #?? | | ????????????????# # #?????## #????????######?? | | ??????????????### ##?????# ??????????????? | | ??????????????# #???#?# ##?????????????? | | ??????????????## # # ## #?## ##??????????????? | | ???????????????## ## ???####???????????????? | | ????????????????# ### # ?????????????????????? | | ????????????????# #?# ##????????????????????? | | ???????????###### #?# ? #?????????????????????? | | ???????????# #?# ###?#?##??????????????????? | | ? ##??????# #####?# #????# ##?????????????????? | | ### ####### #???# #?????????????????? | | ???????# p * #### #?????????????????? | | ???????## %! #??????????????????? | | ????????### ## @ #??????????????????? | | ??????????## ### ## #??????????????????? | | ???????????# ##???##??????????????????? | | ?????????? $ #????????????????????????? | | ???????? ###### #????????????????????????? | | ?????? ### #????## #????????????????????????? | | ????? ???# #?????# #????????????????????????? | | ????? ????# ?????# #????????????????????????? | | ???? #?????# #?????# #????????????????????????? | | ???????????# ##?????# #????????????????????????? | | ???????????# ???????# ????????????????????????? | | ???????????# ???????# ????????????????????????? | | ??????????? ??????? ???????????????????????? | | ??????????? #??????? ???????????????????????? | | ????????????????????? ???????????????????????? | | ????????????????????? ????????????????????????? | | ?????????????????????????????????????????????????? | | ?????????????????????????????????????????????????? | | ?????????????????????????????????????????????????? | | ?????????????????????????????????????????????????? | | ?????????????????????????????????????????????????? | | ?????????????????????????????????????????????????? | | ?????????????????????????????????????????????????? | | ?????????????????????????????????????????????????? | | ?????????????????????????????????????????????????? | +----------------------------------------------------+ Best States ------------- Heat Dissipation 81 Energy Generation 35 Energy Capacity 430 Matter Stores 300 Matter Capacity 300 Sight Range 20 Robot Scan Range 20 Terrain Scan Density 10 Additional Mass Support 9 EM Shielding 2 Armor Coverage 825 Resistance: KI 30 Resistance: EX 50 Weapon Shielding 66 Weapon Cycling 15 Evasion (%) 55 Targeting Accuracy 8 Target Analysis 6 Recoil Reduction 4 Matter Filtering 50 Defensive Hacking 20 Item Schematics ----------------- None Robot Schematics ------------------ None Fabricated ------------ Nothing Alien Tech Used ----------------- None Achievements -------------- Slippery One Streaker Challenges ------------ None Game ------ Seed MomentumShockClaymores Manual? 0 Play Time 02:34:06 Cumulative 40.8 hours Start 2022.06.19 @ 15:08:59 End 2022.06.19 @ 18:21:35 Sessions 1 Manual Loads 0 Difficulty Rogue Special Mode None Game No. 35 Rogue 35 Adventurer 0 Explorer 0 Win Type - Total 0 Types 0/0/0/0/0/0/0/0/0 Lore% 18 Gallery% 37 Achievement% 31 Wizard Run 0 Options --------- ASCII 0 Keyboard 0 Movement Numpad Keybinds 0 Fullscreen 1 Font 12/Smallcaps Map View 83x54 Tactical HUD 1 Map Filters NONE Filters NONE Steam 1 RUN: db341cd1-38bb-4480-bbcb-707bd696e5b0